bitfinex/quotes_BTCUSD_20241025
["timestamp","ask_amount","ask_price","bid_price","bid_amount"]
[1729847693396,0.64766753,67695.0,67694.0,0.00123332]
[1729847693632,0.79817134,67695.0,67694.0,0.00123332]
[1729847694665,0.64766753,67695.0,67694.0,0.00123332]
[1729847695081,0.73846753,67695.0,67694.0,0.00123332]
[1729847695609,0.89088941,67695.0,67694.0,0.00123332]
[1729847696307,0.89288941,67695.0,67694.0,0.00123332]
[1729847699611,0.89088941,67695.0,67694.0,0.00123332]
[1729847700233,1.04139322,67695.0,67694.0,0.00123332]
[1729847701462,0.89288941,67695.0,67694.0,0.00123332]
[1729847702058,0.78905265,67695.0,67694.0,0.00123332]
[1729847702284,0.63463077,67695.0,67694.0,0.00123332]
[1729847702490,0.83400329,67695.0,67694.0,0.00123332]
[1729847702645,0.72347057,67695.0,67694.0,0.00123332]
[1729847702844,0.76577277,67695.0,67694.0,0.00123332]
[1729847703050,0.5899629,67695.0,67694.0,0.00123332]
[1729847703307,0.67805354,67695.0,67694.0,0.00123332]
[1729847703644,0.76647096,67695.0,67694.0,0.00123332]
[1729847703842,0.67805354,67695.0,67694.0,0.00123332]
[1729847704347,0.52365231,67695.0,67694.0,0.00123332]
[1729847704533,0.67810856,67695.0,67694.0,0.00123332]
[1729847704764,0.58996137,67695.0,67694.0,0.00123332]
[1729847704986,0.58996176,67695.0,67694.0,0.00123332]
[1729847706804,0.52365231,67695.0,67694.0,0.00123332]
[1729847707011,0.58996775,67695.0,67694.0,0.00123332]
[1729847707644,0.52365231,67695.0,67694.0,0.00123332]
[1729847707853,0.58997361,67695.0,67694.0,0.00123332]
[1729847708057,0.52365231,67695.0,67694.0,0.00123332]
[1729847708674,0.67893537,67695.0,67694.0,0.00123332]
[1729847708894,0.87119272,67695.0,67694.0,0.00123332]
[1729847709106,0.78277213,67695.0,67694.0,0.00123332]
[1729847709768,0.97159787,67695.0,67694.0,0.00123332]
[1729847710275,1.12410168,67695.0,67694.0,0.00123332]
[1729847710514,1.05965149,67695.0,67694.0,0.00123332]
[1729847711311,1.05765149,67695.0,67694.0,0.00123332]
[1729847711569,1.05785435,67695.0,67694.0,0.00123332]
[1729847712285,1.05985435,67695.0,67694.0,0.00123332]
[1729847712492,1.19254271,67695.0,67694.0,0.00123332]
[1729847712663,1.05985435,67695.0,67694.0,0.00123332]
[1729847713111,1.15115435,67695.0,67694.0,0.00123332]
[1729847714999,1.14915435,67695.0,67694.0,0.00123332]
[1729847715209,1.15115435,67695.0,67694.0,0.00123332]
[1729847715969,1.15065928,67695.0,67694.0,0.00123332]
[1729847716575,1.14865928,67695.0,67694.0,0.00123332]
[1729847717091,1.15065928,67695.0,67694.0,0.00123332]
[1729847717326,0.69918195,67695.0,67694.0,0.00123332]
[1729847717555,0.80301871,67695.0,67694.0,0.00123332]
[1729847718055,0.62088195,67695.0,67694.0,0.00123332]
[1729847718359,0.72471871,67695.0,67694.0,0.00123332]
[1729847718549,0.83527158,67695.0,67694.0,0.00123332]
[1729847718797,0.72471871,67695.0,67694.0,0.00123332]
[1729847719399,0.70395197,67695.0,67694.0,0.00123332]
[1729847720651,0.70423773,67695.0,67694.0,0.00123332]
[1729847723768,0.81479227,67695.0,67694.0,0.00123332]
[1729847725147,0.81492393,67695.0,67694.0,0.00123332]
[1729847725710,0.70433207,67695.0,67694.0,0.00123332]
[1729847727971,0.60049531,67695.0,67694.0,0.181117]
[1729847728177,0.46543407,67695.0,67694.0,0.17793248]
[1729847728377,0.56926472,67695.0,67694.0,0.17793248]
[1729847728702,0.50288557,67695.0,67694.0,0.17793248]
[1729847728907,0.74458185,67695.0,67694.0,0.17793248]
[1729847729531,0.21771772,67695.0,67694.0,0.18293248]
[1729847729738,0.29904881,67695.0,67694.0,0.18293248]
[1729847730569,0.34330579,67695.0,67694.0,0.18293248]
[1729847730758,0.29904881,67695.0,67694.0,0.18293248]
[1729847733352,0.29904881,67695.0,67694.0,0.18230881]
[1729847734380,0.29904881,67695.0,67694.0,0.18395681]
[1729847739261,0.29904881,67695.0,67694.0,0.10715681]
[1729847739937,0.29904881,67695.0,67694.0,0.10247313]
[1729847741588,0.29904881,67695.0,67694.0,0.10715681]
[1729847749031,0.29904881,67695.0,67694.0,0.01133168]
[1729847749825,0.29904881,67695.0,67694.0,0.006648]
[1729847756893,0.81492821,67695.0,67694.0,0.001648]
[1729847757323,0.81492821,67695.0,67683.0,0.001646]
[1729847757324,0.149745,67684.0,67683.0,0.001646]
[1729847757531,0.295569,67666.0,67662.0,0.001672]
[1729847757744,0.149797,67660.0,67659.0,0.12036515]
[1729847757995,0.247797,67660.0,67659.0,0.12036515]
[1729847758398,0.35163376,67660.0,67659.0,0.12036515]
[1729847759244,0.1,67657.0,67655.0,0.00468368]
[1729847759358,0.247804,67657.0,67655.0,0.00468368]
[1729847759564,0.147806,67656.0,67655.0,0.00468368]
[1729847760385,0.147797,67660.0,67659.0,0.00468368]
[1729847761025,0.147789,67664.0,67663.0,0.00468368]
[1729847761435,0.14778,67668.0,67667.0,0.00468368]
[1729847765912,0.147777,67670.0,67669.0,0.00468368]
[1729847766104,0.29828081,67670.0,67669.0,0.00468368]
[1729847771332,0.36474577,67670.0,67669.0,0.00468368]
[1729847772332,0.29828081,67670.0,67669.0,0.00468368]
[1729847772512,0.45762512,67670.0,67669.0,0.00468368]
[1729847773124,0.56840005,67670.0,67669.0,0.00468368]
[1729847773339,0.56840005,67670.0,67662.0,0.00468368]
[1729847773340,0.295565,67667.0,67662.0,0.00468368]
[1729847773550,0.25863945,67665.0,67664.0,0.00468368]
[1729847773762,0.147795,67661.0,67660.0,0.22144961]
[1729847773986,0.60875153,67661.0,67660.0,0.22144961]
[1729847774223,0.60875153,67661.0,67660.0,0.22613329]
[1729847774490,0.147797,67660.0,67659.0,0.001648]
[1729847774700,0.56851766,67660.0,67659.0,0.001648]
[1729847775341,0.45764512,67660.0,67659.0,0.001648]
[1729847775561,0.60875353,67660.0,67659.0,0.001648]
[1729847775799,0.29830081,67660.0,67659.0,0.001648]
[1729847776015,0.44540972,67660.0,67659.0,0.001648]
[1729847777115,0.29830081,67660.0,67659.0,0.001648]
[1729847777651,0.54940922,67660.0,67659.0,0.001648]
[1729847780506,0.55023322,67660.0,67659.0,0.001648]
[1729847785463,0.39912481,67660.0,67659.0,0.001648]
[1729847786085,0.55023322,67660.0,67659.0,0.001648]
[1729847789612,0.59642278,67660.0,67659.0,0.001648]
[1729847791781,0.87039728,67660.0,67659.0,0.001648]
[1729847791974,0.86839728,67660.0,67659.0,0.001648]
[1729847795910,0.74753119,67660.0,67659.0,0.001648]
[1729847796113,0.82893119,67660.0,67659.0,0.001648]
[1729847796548,0.147817,67651.0,67650.0,0.001672]
[1729847796764,0.59761878,67651.0,67650.0,0.001672]
[1729847796981,0.59561878,67651.0,67650.0,0.001672]
[1729847797193,0.59761878,67651.0,67650.0,0.001672]
[1729847798341,0.147837,67642.0,67641.0,0.22144961]
[1729847798622,0.70055763,67642.0,67641.0,0.22144961]
[1729847798868,0.14785,67636.0,67635.0,0.001672]
[1729847799111,0.44946222,67636.0,67635.0,0.001672]
[1729847811844,0.62946222,67636.0,67635.0,0.001672]
[1729847812094,0.76481457,67636.0,67635.0,0.001672]
[1729847813333,0.76681457,67636.0,67635.0,0.001672]
[1729847814103,0.61370616,67636.0,67635.0,0.001672]
[1729847814306,0.76481457,67636.0,67635.0,0.001672]
[1729847817700,0.62946222,67636.0,67635.0,0.001672]
[1729847818866,0.147869,67627.0,67626.0,0.001672]
[1729847819072,0.39837281,67627.0,67626.0,0.001672]
[1729847819850,0.40037281,67627.0,67626.0,0.001672]
[1729847820247,0.39837281,67627.0,67626.0,0.001672]
[1729847820406,0.40037281,67627.0,67626.0,0.001672]
[1729847821268,0.39837281,67627.0,67626.0,0.001672]
[1729847821476,0.54948122,67627.0,67626.0,0.001672]
[1729847821883,0.39837281,67627.0,67626.0,0.001672]
[1729847822310,0.54887662,67627.0,67626.0,0.001672]
[1729847822587,0.55087662,67627.0,67626.0,0.001672]
[1729847822825,0.70198503,67627.0,67626.0,0.001672]
[1729847823058,0.69998503,67627.0,67626.0,0.001672]
[1729847824216,0.54887662,67627.0,67626.0,0.001672]
[1729847824694,0.39837281,67627.0,67626.0,0.001672]
[1729847825205,0.50174547,67627.0,67626.0,0.001672]
[1729847825485,0.65485388,67627.0,67626.0,0.001672]
[1729847825741,0.50374547,67627.0,67626.0,0.001672]
[1729847826478,0.50174547,67627.0,67626.0,0.001672]
[1729847826745,0.65224928,67627.0,67626.0,0.001672]
[1729847828671,0.50174547,67627.0,67626.0,0.001672]
[1729847828910,0.41914547,67627.0,67626.0,0.001672]
[1729847829164,0.42114547,67627.0,67626.0,0.001672]
[1729847831427,0.39837281,67627.0,67626.0,0.001672]
[1729847831830,0.25050381,67627.0,67626.0,0.001672]
[1729847832041,0.15050381,67627.0,67626.0,0.149544]
[1729847832247,0.15050381,67627.0,67626.0,0.001672]
[1729847832450,0.29837281,67627.0,67626.0,0.001672]
[1729847833350,0.15050381,67627.0,67626.0,0.001672]
[1729847833777,0.15050381,67627.0,67626.0,0.08515568]
[1729847836563,0.29837281,67627.0,67626.0,0.08515568]
[1729847837399,0.15050381,67627.0,67626.0,0.08515568]
[1729847837575,0.29837281,67627.0,67626.0,0.08515568]
[1729847838491,0.15050381,67627.0,67626.0,0.08515568]
[1729847838692,0.29837281,67627.0,67626.0,0.08515568]
[1729847839913,0.29837281,67627.0,67626.0,0.00635568]
[1729847840120,0.29837281,67627.0,67626.0,0.001672]
[1729847840121,0.40246593,67627.0,67626.0,0.001672]
[1729847840739,0.29837281,67627.0,67626.0,0.001672]
[1729847841564,0.34253194,67627.0,67626.0,0.001672]
[1729847841768,0.36359153,67627.0,67626.0,0.001672]
[1729847841981,0.34253194,67627.0,67626.0,0.001672]
[1729847842392,0.29837281,67627.0,67626.0,0.001672]
[1729847843658,0.15050381,67627.0,67626.0,0.001672]
[1729847844078,1.15050381,67627.0,67626.0,0.001672]
[1729847845395,1.44887662,67627.0,67626.0,0.001672]
[1729847845601,1.15050381,67627.0,67626.0,0.001672]
[1729847848138,1.29837281,67627.0,67626.0,0.001672]
[1729847849075,1.34262281,67627.0,67626.0,0.001672]
[1729847849293,1.15050381,67627.0,67626.0,0.001672]
[1729847852121,1.30100762,67627.0,67626.0,0.001672]
[1729847852398,1.15050381,67627.0,67626.0,0.001672]
[1729847852623,1.29837281,67627.0,67626.0,0.001672]
[1729847853551,1.34263318,67627.0,67626.0,0.001672]
[1729847853774,1.29837281,67627.0,67626.0,0.001672]
[1729847855409,1.36474781,67627.0,67626.0,0.001672]
[1729847855936,1.69845162,67627.0,67626.0,0.001672]
[1729847856964,1.78910751,67627.0,67626.0,0.001672]
[1729847857610,1.83768672,67627.0,67626.0,0.001672]
[1729847858024,1.79158186,67627.0,67626.0,0.001672]
[1729847858697,1.83768562,67627.0,67626.0,0.001672]
[1729847859109,1.79158186,67627.0,67626.0,0.001672]
[1729847859314,1.83768433,67627.0,67626.0,0.001672]
[1729847859969,1.83568202,67627.0,67626.0,0.001672]
[1729847860823,1.83768202,67627.0,67626.0,0.001672]
[1729847861952,1.83568202,67627.0,67626.0,0.001672]
[1729847862493,1.83567895,67627.0,67626.0,0.001672]
[1729847863480,1.78958186,67627.0,67626.0,0.001672]
[1729847863996,1.79158186,67627.0,67626.0,0.001672]
[1729847865307,1.64107805,67627.0,67626.0,0.001672]
[1729847866398,1.84963789,67627.0,67626.0,0.001672]
[1729847869927,1.86006027,67627.0,67626.0,0.001672]
[1729847871732,1.86068125,67627.0,67626.0,0.001672]
[1729847874843,1.81845375,67627.0,67626.0,0.001672]
[1729847880511,1.82045375,67627.0,67626.0,0.001672]
[1729847882326,1.81845375,67627.0,67626.0,0.001672]
[1729847882577,1.70780939,67627.0,67626.0,0.001672]
[1729847884094,1.70739898,67627.0,67626.0,0.001672]
[1729847885968,1.78319898,67627.0,67626.0,0.001672]
[1729847886173,1.78325069,67627.0,67626.0,0.001672]
[1729847886627,1.82940314,67627.0,67626.0,0.001672]
[1729847888350,1.78237013,67627.0,67626.0,0.001672]
[1729847888787,1.7071597,67627.0,67626.0,0.001672]
[1729847891533,1.5567323,67627.0,67626.0,0.001672]
[1729847891746,1.64531016,67627.0,67626.0,0.001672]
[1729847891921,1.46480711,67627.0,67626.0,0.001672]
[1729847892140,1.31693811,67627.0,67626.0,0.001672]
[1729847892353,1.19479478,67627.0,67626.0,0.001672]
[1729847892531,1.19479478,67627.0,67626.0,0.25015163]
[1729847892532,1.15050381,67627.0,67626.0,0.25015163]
[1729847892731,1.15050381,67627.0,67626.0,0.10227963]
[1729847893399,1.15050381,67627.0,67626.0,0.09765568]
[1729847893600,1.15050381,67627.0,67626.0,0.24552768]
[1729847893809,1.15050381,67627.0,67626.0,0.09765568]
[1729847893999,1.15050381,67627.0,67626.0,0.24552768]
[1729847894243,1.15050381,67627.0,67626.0,0.09765568]
[1729847895878,1.40264776,67627.0,67626.0,0.09765568]
[1729847896123,1.25477876,67627.0,67626.0,0.09765568]
[1729847896336,1.55315157,67627.0,67626.0,0.001672]
[1729847896770,1.71958834,67627.0,67626.0,0.001672]
[1729847897667,1.50264776,67627.0,67626.0,0.001672]
[1729847897798,1.66038505,67627.0,67626.0,0.001672]
[1729847899296,1.70651296,67627.0,67626.0,0.001672]
[1729847900222,1.79891296,67627.0,67626.0,0.001672]
[1729847901956,1.81978704,67627.0,67626.0,0.001672]
[1729847902195,1.72738704,67627.0,67626.0,0.001672]
[1729847902439,1.72674232,67627.0,67626.0,0.001672]
[1729847903131,1.87724613,67627.0,67626.0,0.001672]
[1729847906082,1.72674232,67627.0,67626.0,0.001672]
[1729847907771,1.83101727,67627.0,67626.0,0.001672]
[1729847907980,1.72674232,67627.0,67626.0,0.001672]
[1729847908387,1.83101727,67627.0,67626.0,0.001672]
[1729847909012,1.72674232,67627.0,67626.0,0.001672]
[1729847909216,1.87724613,67627.0,67626.0,0.001672]
[1729847909455,1.98152108,67627.0,67626.0,0.001672]
[1729847909657,1.87724613,67627.0,67626.0,0.001672]
[1729847910107,1.98152108,67627.0,67626.0,0.001672]
[1729847910309,1.87724613,67627.0,67626.0,0.001672]
[1729847911329,1.83111822,67627.0,67626.0,0.001672]
[1729847911692,1.93655065,67627.0,67626.0,0.001672]
[1729847911918,1.8322757,67627.0,67626.0,0.001672]
[1729847913317,1.68177189,67627.0,67626.0,0.001672]
[1729847914793,1.78604684,67627.0,67626.0,0.001672]
[1729847915786,2.0097632,67627.0,67626.0,0.001672]
[1729847915951,2.0097632,67627.0,67611.0,0.22144961]
[1729847915952,0.247902,67612.0,67611.0,0.22144961]
[1729847916151,0.50268076,67612.0,67611.0,0.22144961]
[1729847916329,0.56907527,67612.0,67611.0,0.22144961]
[1729847916533,0.24791,67609.0,67607.0,0.0918]
[1729847916739,0.35477876,67608.0,67607.0,0.0918]
[1729847918020,0.50268976,67608.0,67607.0,0.0918]
[1729847922392,0.50268976,67608.0,67607.0,0.0918]
[1729847927366,0.39841481,67608.0,67607.0,0.0918]
[1729847927579,0.29841481,67608.0,67607.0,0.0918]
[1729847929367,0.15050381,67608.0,67607.0,0.092624]
[1729847929648,0.29841481,67608.0,67607.0,0.092624]
[1729847930117,0.14422499,67618.0,67615.0,0.00468368]
[1729847930346,0.247893,67616.0,67615.0,0.17718368]
[1729847930593,0.04421901,67620.0,67619.0,0.00468368]
[1729847930824,0.295752,67624.0,67621.0,0.00468368]
[1729847931054,0.147877,67624.0,67621.0,0.00468368]
[1729847931281,0.14788,67623.0,67621.0,0.00468368]
[1729847931530,0.14788,67622.0,67621.0,0.00468368]
[1729847932073,0.15050381,67622.0,67621.0,0.00468368]
[1729847939211,0.29838381,67622.0,67621.0,0.00468368]
[1729847939683,0.15050381,67622.0,67621.0,0.00468368]
[1729847939980,0.29838381,67622.0,67621.0,0.00468368]
[1729847940732,0.15050381,67622.0,67619.0,0.00468368]
[1729847940989,0.13427495,67623.0,67615.0,0.00468368]
[1729847940990,0.14789,67618.0,67615.0,0.00468368]
[1729847941283,0.10427495,67619.0,67609.0,0.31784961]
[1729847941284,0.147903,67612.0,67609.0,0.22613329]
[1729847941536,0.147903,67612.0,67611.0,0.00468368]
[1729847941771,0.147903,67612.0,67610.0,0.00468368]
[1729847942010,0.25217995,67611.0,67609.0,0.00468368]
[1729847942246,0.25217995,67611.0,67608.0,0.00468368]
[1729847942247,0.147909,67609.0,67608.0,0.00468368]
[1729847942474,0.29841281,67609.0,67608.0,0.00468368]
[1729847942720,0.15050381,67609.0,67608.0,0.00468368]
[1729847948113,0.15050381,67609.0,67608.0,0.15259468]
[1729847948346,0.15050381,67609.0,67608.0,0.00468368]
[1729847948788,0.15050381,67609.0,67608.0,0.15259468]
[1729847949006,0.15050381,67609.0,67608.0,0.15759468]
[1729847949431,0.04423827,67615.0,67614.0,0.15258168]
[1729847949649,0.26568788,67618.0,67616.0,0.00468368]
[1729847949890,0.1,67619.0,67616.0,0.00468368]
[1729847950099,0.10427495,67617.0,67616.0,0.00468368]
[1729847951412,0.25216595,67617.0,67616.0,0.00468368]
[1729847951630,0.147895,67616.0,67614.0,0.00468368]
[1729847951843,0.147895,67616.0,67613.0,0.00468368]
[1729847952074,0.25217295,67614.0,67613.0,0.00468368]
[1729847952303,0.40267676,67614.0,67613.0,0.00468368]
[1729847952573,0.25477876,67614.0,67613.0,0.00468368]
[1729847953227,0.15050381,67614.0,67613.0,0.00468368]
[1729847956350,0.29840381,67613.0,67612.0,0.00468368]
[1729847956803,0.147907,67610.0,67609.0,0.00468368]
[1729847957014,0.40268576,67610.0,67609.0,0.00468368]
[1729847958978,0.29841081,67610.0,67609.0,0.00468368]
[1729847959667,0.29841081,67610.0,67602.0,0.13278129]
[1729847959885,0.15050381,67609.0,67602.0,0.13278129]
[1729847960105,0.147913,67607.0,67600.0,0.081]
[1729847960352,0.29841981,67606.0,67600.0,0.076]
[1729847960783,0.15050381,67606.0,67600.0,0.076]
[1729847961418,0.29841981,67606.0,67600.0,0.076]
[1729847961879,0.147919,67605.0,67600.0,0.076]
[1729847962099,0.15050381,67604.0,67600.0,0.076]
[1729847963324,0.15050381,67604.0,67600.0,0.223926]
[1729847963580,0.15050381,67604.0,67600.0,0.076]
[1729847965804,0.15050381,67604.0,67601.0,0.100724]
[1729847969622,0.15050381,67604.0,67601.0,0.100724]
[1729847969832,0.1,67613.0,67602.0,0.11167525]
[1729847970049,0.15050381,67612.0,67603.0,0.0103584]
[1729847970264,0.15050381,67612.0,67606.0,0.229715]
[1729847970533,0.15050381,67612.0,67607.0,0.238712]
[1729847970975,0.15050381,67612.0,67607.0,0.238711]
[1729847971187,0.15050381,67612.0,67607.0,0.0908]
[1729847971409,0.295809,67611.0,67607.0,0.0908]
[1729847971625,0.147909,67609.0,67607.0,0.0908]
[1729847971895,0.15050381,67609.0,67607.0,0.0908]
[1729847973435,0.18050381,67609.0,67607.0,0.0908]
[1729847975784,0.18050381,67609.0,67608.0,0.147911]
[1729847976002,0.18050381,67609.0,67607.0,0.0908]
[1729847978298,0.18215181,67609.0,67607.0,0.0908]
[1729847979175,0.33006081,67609.0,67607.0,0.0908]
[1729847980509,0.18215181,67609.0,67607.0,0.0908]
[1729847982896,0.18215181,67609.0,67603.0,0.005]
[1729847983117,0.031648,67609.0,67608.0,0.147911]
[1729847983814,0.001648,67609.0,67608.0,0.42738588]
[1729847984035,0.001648,67609.0,67608.0,0.32311093]
[1729847986733,0.001648,67609.0,67608.0,0.17519993]
[1729847987206,0.001648,67609.0,67608.0,0.32311093]
[1729847987434,0.001648,67609.0,67608.0,0.315711]
[1729847988514,0.001648,67609.0,67608.0,0.32311089]
[1729847990941,0.001648,67609.0,67608.0,0.32773549]
[1729847995233,0.001648,67609.0,67608.0,0.34273549]
[1729847996635,0.001648,67609.0,67608.0,0.36573549]
[1729847998389,0.001648,67609.0,67608.0,0.365734]
[1729848000179,0.001648,67609.0,67608.0,0.61823781]
[1729848000395,0.22309761,67626.0,67625.0,0.43584895]
[1729848001081,0.001648,67626.0,67625.0,0.43584895]
[1729848001359,0.001648,67626.0,67625.0,0.152874]
[1729848001617,0.001648,67626.0,67623.0,0.295755]
[1729848001838,0.001648,67626.0,67621.0,0.295766]
[1729848002057,0.001648,67626.0,67625.0,0.005]
[1729848002534,0.001648,67626.0,67625.0,0.152874]
[1729848005378,0.001648,67626.0,67625.0,0.005]
[1729848005585,0.001648,67626.0,67620.0,0.300769]
[1729848005800,0.001648,67626.0,67623.0,0.147878]
[1729848006213,0.001648,67626.0,67624.0,0.152875]
[1729848006443,0.001648,67626.0,67623.0,0.147878]
[1729848006691,0.15050381,67625.0,67616.0,0.005]
[1729848006915,0.147877,67624.0,67619.0,0.152886]
[1729848007127,0.29837981,67625.0,67619.0,0.295774]
[1729848007744,0.15050381,67625.0,67620.0,0.005]
[1729848007985,0.29837781,67625.0,67621.0,0.147881]
[1729848008403,0.15050381,67625.0,67622.0,0.147879]
[1729848008615,0.29837881,67625.0,67620.0,0.152884]
[1729848009044,0.15050381,67625.0,67620.0,0.005]
[1729848009260,0.0815,67624.0,67618.0,0.005]
[1729848009460,0.147881,67622.0,67618.0,0.005]
[1729848009699,0.15050381,67621.0,67620.0,0.005]
[1729848010607,0.15050381,67621.0,67619.0,0.147886]
[1729848010838,0.30174992,67621.0,67613.0,0.147899]
[1729848011049,0.147891,67618.0,67613.0,0.147899]
[1729848011299,0.29577,67620.0,67606.0,0.30424961]
[1729848011300,0.147894,67616.0,67607.0,0.005]
[1729848011501,0.15050381,67615.0,67608.0,0.14791]
[1729848011702,0.147902,67612.0,67608.0,0.14791]
[1729848011903,0.15050381,67612.0,67607.0,0.005]
[1729848012118,0.15050381,67612.0,67609.0,0.147909]
[1729848012329,0.15050381,67611.0,67603.0,0.295842]
[1729848012556,0.29840881,67611.0,67606.0,0.147915]
[1729848012769,0.15050381,67611.0,67608.0,0.147911]
[1729848013201,0.15050381,67611.0,67607.0,0.005]
[1729848013408,0.15050381,67611.0,67606.0,0.005]
[1729848013618,0.29840881,67611.0,67607.0,0.152913]
[1729848014045,0.29915711,67609.0,67601.0,0.296676]
[1729848014260,0.29841581,67608.0,67603.0,0.14792]
[1729848014476,0.29841581,67608.0,67601.0,0.296676]
[1729848014689,0.29841581,67608.0,67603.0,0.147921]
[1729848015149,0.147916,67606.0,67602.0,0.148746]
[1729848015369,0.15124611,67609.0,67602.0,0.000824]
[1729848015370,0.30174992,67605.0,67602.0,0.000824]
[1729848015617,0.44966792,67605.0,67602.0,0.000824]
[1729848015824,0.14792,67604.0,67602.0,0.000824]
[1729848016049,0.15050381,67603.0,67602.0,0.000824]
[1729848016676,0.22730381,67603.0,67602.0,0.000824]
[1729848018887,0.22730381,67603.0,67602.0,0.148748]
[1729848021289,0.22730381,67603.0,67602.0,0.000824]
[1729848021290,0.37522581,67603.0,67602.0,0.000824]
[1729848026692,0.57362581,67603.0,67602.0,0.000824]
[1729848036485,0.67795768,67603.0,67602.0,0.000824]
[1729848039584,0.39842581,67603.0,67602.0,0.000824]
[1729848040033,0.15050381,67603.0,67602.0,0.000824]
[1729848040247,0.29842581,67603.0,67602.0,0.000824]
[1729848040885,0.40275768,67603.0,67602.0,0.000824]
[1729848048857,0.29842581,67603.0,67602.0,0.000824]
[1729848049507,0.15050381,67603.0,67602.0,0.094824]
[1729848050791,0.15050381,67603.0,67602.0,0.321348]
[1729848051679,0.15050381,67603.0,67602.0,0.173424]
[1729848053073,0.03,67604.0,67602.0,0.469273]
[1729848053304,0.03,67604.0,67603.0,0.147922]
[1729848054049,0.03,67604.0,67603.0,0.15088022]
[1729848054284,0.03,67604.0,67603.0,0.147922]
[1729848054967,0.03,67604.0,67603.0,0.15088015]
[1729848057722,0.001648,67609.0,67608.0,0.147911]
[1729848058372,0.001648,67609.0,67608.0,0.323011]
[1729848060496,0.001648,67609.0,67608.0,0.33226019]
[1729848060703,0.001648,67609.0,67608.0,0.34428409]
[1729848064369,0.149557,67609.0,67608.0,0.00462458]
[1729848064603,0.30006081,67609.0,67608.0,0.00462458]
[1729848065517,0.15215181,67609.0,67605.0,0.147916]
[1729848065723,0.149557,67609.0,67606.0,0.00462518]
[1729848065942,0.149557,67609.0,67607.0,0.00462518]
[1729848066156,0.149557,67609.0,67608.0,0.00462518]
[1729848067248,0.30006081,67609.0,67608.0,0.00462518]
[1729848067783,0.30006081,67609.0,67602.0,0.000824]
[1729848067784,0.15215181,67609.0,67602.0,0.000824]
[1729848068034,0.25225287,67604.0,67603.0,0.00462537]
[1729848068234,0.25483568,67604.0,67603.0,0.00462537]
[1729848068454,0.40275568,67604.0,67603.0,0.00462537]
[1729848069764,0.40275568,67604.0,67602.0,0.000824]
[1729848069765,0.147922,67603.0,67602.0,0.000824]
[1729848070019,0.49615768,67603.0,67602.0,0.000824]
[1729848088872,0.40275768,67603.0,67602.0,0.000824]
[1729848092552,0.44695985,67603.0,67602.0,0.000824]
[1729848092973,0.40275768,67603.0,67602.0,0.000824]
[1729848099185,0.86728716,67603.0,67602.0,0.000824]
[1729848099403,0.90443635,67603.0,67602.0,0.000824]
[1729848099613,0.816032,67603.0,67602.0,0.000824]
[1729848100197,0.90436556,67603.0,67602.0,0.000824]
[1729848101374,0.90236556,67603.0,67602.0,0.000824]
[1729848101591,0.89750425,67603.0,67602.0,0.000824]
[1729848101795,0.79790425,67603.0,67602.0,0.000824]
[1729848102209,0.56899277,67603.0,67602.0,0.000824]
[1729848103006,0.50275768,67603.0,67602.0,0.000824]
[1729848103230,0.54691331,67603.0,67602.0,0.000824]
[1729848103691,0.50275768,67603.0,67602.0,0.000824]
[1729848104406,0.50275768,67603.0,67599.0,0.000836]
[1729848104407,0.35225987,67600.0,67599.0,0.000836]
[1729848104659,0.50276368,67600.0,67599.0,0.000836]
[1729848109214,0.54692294,67600.0,67599.0,0.000836]
[1729848110126,0.50276368,67600.0,67599.0,0.000836]
[1729848110333,0.54692294,67600.0,67599.0,0.000836]
[1729848112266,0.50276368,67600.0,67599.0,0.000836]
[1729848113366,0.56900257,67600.0,67599.0,0.000836]
[1729848116135,0.46900257,67600.0,67599.0,0.000836]
[1729848120298,0.46910377,67600.0,67599.0,0.000836]
[1729848120894,0.4632634,67600.0,67599.0,0.000836]
[1729848121625,0.35893153,67600.0,67599.0,0.000836]
[1729848121826,0.4632634,67600.0,67599.0,0.000836]
[1729848123478,0.46326573,67600.0,67599.0,0.000836]
[1729848124054,0.19473436,67600.0,67599.0,0.000836]
[1729848124254,0.29843181,67600.0,67599.0,0.000836]
[1729848124486,0.15050381,67600.0,67599.0,0.000836]
[1729848124870,0.29843181,67600.0,67599.0,0.00546197]
[1729848127419,0.29843181,67600.0,67599.0,0.000836]
[1729848127633,0.29843181,67600.0,67599.0,0.0054619]
[1729848128074,0.15050381,67600.0,67599.0,0.0054619]
[1729848128296,0.29843181,67600.0,67599.0,0.0054619]
[1729848130215,0.15215181,67600.0,67599.0,0.0054619]
[1729848130457,0.15215181,67600.0,67599.0,0.0863619]
[1729848131448,0.30007981,67600.0,67599.0,0.0054619]
[1729848134477,0.30007981,67600.0,67599.0,0.000836]
[1729848134720,0.30007981,67600.0,67599.0,0.00546185]
[1729848135181,0.15215181,67600.0,67599.0,0.15339285]
[1729848135422,0.15215181,67600.0,67599.0,0.00546185]
[1729848136136,0.30007981,67600.0,67599.0,0.00546185]
[1729848138039,0.15215181,67600.0,67599.0,0.00546185]
[1729848138684,0.30007981,67600.0,67599.0,0.00546185]
[1729848139390,0.15215181,67600.0,67599.0,0.00546185]
[1729848139622,0.30007981,67600.0,67599.0,0.00546185]
[1729848142426,0.15215181,67600.0,67599.0,0.00546185]
[1729848144252,0.30007981,67600.0,67599.0,0.00546185]
[1729848146012,0.15215181,67600.0,67599.0,0.00546185]
[1729848146219,0.30007981,67600.0,67599.0,0.00546185]
[1729848151110,0.15215181,67600.0,67599.0,0.00546185]
[1729848151317,0.30007981,67600.0,67599.0,0.00546185]
[1729848152841,0.30007981,67600.0,67599.0,0.000836]
[1729848152842,0.15215181,67600.0,67599.0,0.000836]
[1729848153084,0.15215181,67600.0,67599.0,0.00546192]
[1729848154185,0.30007981,67600.0,67599.0,0.00546192]
[1729848155074,0.47207981,67600.0,67599.0,0.00546192]
[1729848155299,0.62064905,67600.0,67599.0,0.00546192]
[1729848156156,0.57641168,67600.0,67599.0,0.00546209]
[1729848156359,0.57641168,67600.0,67599.0,0.000836]
[1729848157712,0.40441168,67600.0,67599.0,0.000836]
[1729848157921,0.30007981,67600.0,67599.0,0.000836]
[1729848158395,0.30007981,67600.0,67599.0,0.0054621]
[1729848159219,0.30007981,67600.0,67599.0,0.000836]
[1729848160951,0.001648,67600.0,67599.0,0.178636]
[1729848161159,0.001648,67600.0,67599.0,0.33119283]
[1729848164303,0.001648,67600.0,67599.0,0.33859402]
[1729848166387,0.001648,67600.0,67599.0,0.33119283]
[1729848167448,0.001648,67600.0,67599.0,0.33119274]